fUSD/lending_fUSD_20250426
["ID","MTS","AMOUNT","RATE_DAILY","PERIOD"]
[359069553,1745692255274,-1267.56,0.00019885,2]
[359069554,1745692255283,-1267.56,0.00019885,2]
[359069555,1745692255292,-1267.56,0.00019885,2]
[359069556,1745692255302,-1267.56,0.00019885,2]
[359069557,1745692255313,-1267.56,0.00019885,2]
[359069558,1745692255322,-1267.56,0.00019885,2]
[359069559,1745692255332,-1267.56,0.00019885,2]
[359069560,1745692255341,-1267.56,0.00019885,2]
[359069561,1745692255352,-1267.56,0.00019885,2]
[359069562,1745692255362,-1267.56,0.00019885,2]
[359069563,1745692255372,-1267.56,0.00019885,2]
[359069564,1745692255383,-238.065199,0.00019885,2]
[359069565,1745692255394,-238.065199,0.00019885,2]
[359069566,1745692255406,-151.0,0.00019885,2]
[359069567,1745692255418,-980.72,0.00019885,2]
[359069568,1745692255429,-980.72,0.00019885,2]
[359069569,1745692255438,-980.72,0.00019885,2]
[359069570,1745692255450,-980.72,0.00019885,2]
[359069571,1745692255460,-980.72,0.00019885,2]
[359069572,1745692255472,-980.72,0.00019885,2]
[359069573,1745692255483,-980.72,0.00019885,2]
[359069574,1745692255492,-980.72,0.00019885,2]
[359069575,1745692255503,-980.72,0.00019885,2]
[359069576,1745692255514,-980.72,0.00019885,2]
[359069577,1745692255524,-980.72,0.00019885,2]
[359069578,1745692255535,-980.72,0.00019885,2]
[359069579,1745692255544,-980.72,0.00019885,2]
[359069580,1745692255556,-980.72,0.00019885,2]
[359069581,1745692255566,-980.72,0.00019885,2]
[359069582,1745692255576,-980.72,0.00019885,2]
[359069583,1745692255586,-980.72,0.00019885,2]
[359069584,1745692255598,-980.72,0.00019885,2]
[359069585,1745692255609,-980.79235294,0.00019885,2]
[359069586,1745692255620,-151.0,0.00019885,2]
[359069587,1745692255631,-151.0,0.00019885,2]
[359069588,1745692255642,-151.0,0.00019885,2]
[359069589,1745692255653,-312.313674,0.00019885,2]
[359069590,1745692255663,-312.313674,0.00019885,2]
[359069591,1745692255673,-151.0,0.00019885,2]
[359069592,1745692255683,-294.375668,0.00019885,2]
[359069593,1745692255693,-294.375668,0.00019885,2]
[359069594,1745692255704,-589.042961,0.00019885,2]
[359069595,1745692255715,-151.0,0.00019885,2]
[359069596,1745692255727,-151.0,0.00019885,2]
[359069597,1745692255737,-589.042961,0.00019885,2]
[359069598,1745692255747,-169.789393,0.00019885,2]
[359069599,1745692255757,-169.789393,0.00019885,2]
[359069600,1745692255766,-235.852517,0.00019885,2]
[359069601,1745692255776,-235.852517,0.00019885,2]
[359069602,1745692255786,-185.814516,0.00019885,2]
[359069603,1745692255795,-151.0,0.00019885,2]
[359069604,1745692255806,-151.0,0.00019885,2]
[359069605,1745692255816,-151.0,0.00019885,2]
[359069606,1745692255826,-319.12064695,0.00019885,2]
[359069607,1745692255835,-330.23165471,0.00019885,2]
[359069608,1745692255846,-500.0,0.00019885,2]
[359069609,1745692255856,-500.0,0.00019885,2]
[359069610,1745692255866,-300.0,0.00019885,2]
[359069611,1745692255875,-300.0,0.00019885,2]
[359069612,1745692255885,-2782021.65537075,0.00019886,2]
[359069613,1745692255894,-205.421305,0.00019886,2]
[359069614,1745692255904,-205.421305,0.00019886,2]
[359069615,1745692255913,-205.421305,0.00019886,2]
[359069616,1745692255923,-205.421305,0.00019886,2]
[359069617,1745692255932,-154.110067,0.00019886,2]
[359069618,1745692255941,-151.0,0.00019886,2]
[359069619,1745692255951,-151.0,0.00019886,2]
[359069620,1745692255962,-163.421921,0.00019886,2]
[359069621,1745692255971,-151.0,0.00019886,2]
[359069622,1745692255981,-151.0,0.00019886,2]
[359069623,1745692255991,-152.817562,0.00019886,2]
[359069624,1745692256000,-151.0,0.00019886,2]
[359069625,1745692256010,-151.0,0.00019886,2]
[359069626,1745692256023,-151.0,0.00019886,2]
[359069627,1745692256034,-163.111419,0.00019886,2]
[359069628,1745692256043,-151.0,0.00019886,2]
[359069629,1745692256055,-151.0,0.00019886,2]
[359069630,1745692256066,-151.0,0.00019886,2]
[359069631,1745692256077,-151.0,0.00019886,2]
[359069632,1745692256087,-446.967519,0.00019886,2]
[359069633,1745692256097,-151.0,0.00019886,2]
[359069634,1745692256107,-151.0,0.00019886,2]
[359069635,1745692256118,-238.065199,0.00019886,2]
[359069636,1745692256129,-238.065199,0.00019886,2]
[359069637,1745692256139,-176.852989,0.00019886,2]
[359069638,1745692256150,-459.841495,0.00019886,2]
[359069639,1745692256160,-459.841495,0.00019886,2]
[359069640,1745692256171,-459.841495,0.00019886,2]
[359069641,1745692256182,-459.841495,0.00019886,2]
[359069642,1745692256192,-151.0,0.00019886,2]
[359069643,1745692256203,-151.0,0.00019886,2]
[359069644,1745692256212,-151.0,0.00019886,2]
[359069645,1745692256222,-151.0,0.00019886,2]
[359069646,1745692256232,-312.313674,0.00019886,2]
[359069647,1745692256243,-312.313674,0.00019886,2]
[359069648,1745692256256,-151.0,0.00019886,2]
[359069649,1745692256266,-294.375668,0.00019886,2]
[359069650,1745692256277,-294.375668,0.00019886,2]
[359069651,1745692256288,-589.042961,0.00019886,2]
[359069652,1745692256299,-151.0,0.00019886,2]
[359069653,1745692256308,-151.0,0.00019886,2]
[359069654,1745692256318,-589.042961,0.00019886,2]
[359069655,1745692256329,-169.789393,0.00019886,2]
[359069656,1745692256338,-169.789393,0.00019886,2]
[359069657,1745692256348,-235.852517,0.00019886,2]
[359069658,1745692256358,-235.852517,0.00019886,2]
[359069659,1745692256369,-151.0,0.00019886,2]
[359069660,1745692256379,-253.555265,0.00019886,2]
[359069661,1745692256390,-151.0,0.00019886,2]
[359069662,1745692256400,-151.0,0.00019886,2]
[359069663,1745692256410,-301.237131,0.00019886,2]
[359069664,1745692256420,-614.535293,0.00019886,2]
[359069665,1745692256430,-614.535293,0.00019886,2]
[359069666,1745692256439,-614.535293,0.00019886,2]
[359069667,1745692256450,-614.535293,0.00019886,2]
[359069668,1745692256460,-338.61098,0.00019886,2]
[359069669,1745692256471,-338.61098,0.00019886,2]
[359069670,1745692256481,-151.0,0.00019886,2]
[359069671,1745692256493,-151.0,0.00019886,2]
[359069672,1745692256503,-338.61098,0.00019886,2]
[359069673,1745692256513,-338.61098,0.00019886,2]
[359069674,1745692256525,-151.0,0.00019886,2]
[359069675,1745692256536,-189.82341,0.00019886,2]
[359069676,1745692256547,-151.0,0.00019886,2]
[359069677,1745692256557,-250.10347,0.00019886,2]
[359069678,1745692256567,-2190.097,0.00019888,2]
[359069679,1745692256580,-178.287,0.00019888,2]
[359069680,1745692256592,-263.09905844,0.00019893,2]
[359069681,1745692256602,-151.86601957,0.00019898,2]
[359069682,1745692256612,-500.0,0.00019898,2]
[359069683,1745692256622,-500.0,0.00019898,2]
[359069684,1745692256632,-150.0,0.00019898,2]
[359069685,1745692256642,-150.0,0.00019898,2]
[359069686,1745692256651,-500.0,0.00019898,2]
[359069687,1745692256660,-500.0,0.00019898,2]
[359069688,1745692256670,-500.0,0.00019898,2]
[359069689,1745692256679,-500.0,0.00019898,2]
[359069690,1745692256690,-500.0,0.00019898,2]
[359069691,1745692256700,-500.0,0.00019898,2]
[359069692,1745692256709,-571.0,0.00019898,2]
[359069693,1745692256719,-500.0,0.00019898,2]
[359069694,1745692256728,-4983.09173191,0.000199,2]
[359069695,1745692256739,-4385.74016815,0.000199,2]
[359069696,1745692256749,-450.63,0.000199,2]
[359069697,1745692256759,-907.98,0.000199,2]
[359069698,1745692256769,-327.58,0.000199,2]
[359069699,1745692256779,-1151.69,0.000199,2]
[359069700,1745692256789,-450.63,0.000199,2]
[359069701,1745692256799,-1302.7,0.000199,2]
[359069702,1745692256809,-161.91,0.000199,2]
[359069703,1745692256819,-455.14,0.000199,2]
[359069704,1745692256830,-304.12,0.000199,2]
[359069705,1745692256842,-161.91,0.000199,2]
[359069706,1745692256852,-455.14,0.000199,2]
[359069707,1745692256861,-150.0,0.000199,2]
[359069708,1745692256871,-312.69,0.000199,2]
[359069709,1745692256881,-150.0,0.000199,2]
[359069710,1745692256892,-455.14,0.000199,2]
[359069711,1745692256904,-329.95,0.000199,2]
[359069712,1745692256915,-150.0,0.000199,2]
[359069713,1745692256924,-455.14,0.000199,2]
[359069714,1745692256934,-299.54965632,0.000199,2]
[359069715,1745692256943,-1598.0,0.000199,2]
[359069716,1745692256952,-455.14,0.000199,2]
[359069717,1745692256962,-161.91,0.000199,2]
[359069718,1745692256971,-259.55,0.000199,2]
[359069719,1745692256981,-150.0,0.000199,2]
[359069720,1745692256990,-150.0,0.000199,2]
[359069721,1745692256999,-455.14,0.000199,2]
[359069722,1745692257008,-1617.74,0.000199,2]
[359069723,1745692257018,-301.42,0.000199,2]
[359069724,1745692257027,-150.0,0.000199,2]
[359069725,1745692257037,-675.14691529,0.000199,2]
[359069726,1745692257046,-351.4,0.000199,2]
[359069727,1745692257056,-351.4,0.000199,2]
[359069728,1745692257065,-351.4,0.000199,2]
[359069729,1745692257075,-86488.40563332,0.000199,2]
[359069730,1745692257084,-1599.38,0.000199,2]
[359069731,1745692257094,-150.0,0.000199,2]
[359069732,1745692257104,-351.29,0.000199,2]
[359069733,1745692257113,-799.84,0.000199,2]
[359069734,1745692257123,-351.29,0.000199,2]
[359069735,1745692257133,-671.71423153,0.000199,2]
[359069736,1745692257142,-799.84,0.000199,2]
[359069737,1745692257155,-702.05,0.000199,2]
[359069738,1745692257165,-455.14,0.000199,2]
[359069739,1745692257174,-221.29708106,0.000199,2]
[359069740,1745692257184,-500.0,0.000199,2]
[359069741,1745692257194,-2743.0,0.000199,2]
[359069742,1745692257204,-1336.0,0.00019903,2]
[359069743,1745692257214,-6193.0,0.00019903,2]
[359069744,1745692257223,-872.0,0.00019903,2]
[359069745,1745692257234,-150.0,0.00019904,2]
[359069746,1745692257243,-500.0,0.00019904,2]
[359069747,1745692257255,-500.0,0.00019904,2]
[359069748,1745692257265,-500.0,0.00019926,2]
[359069749,1745692257275,-583.51134533,0.00019926,2]
[359069750,1745692257285,-240.0110271,0.00019926,2]
[359069751,1745692257295,-154.28711873,0.00019926,2]
[359069752,1745692257304,-500.0,0.00019926,2]
[359069753,1745692257314,-500.0,0.00019926,2]
[359069754,1745692257323,-500.0,0.00019926,2]
[359069755,1745692257333,-500.0,0.00019926,2]
[359069756,1745692257344,-500.0,0.00019926,2]
[359069757,1745692257353,-500.0,0.00019926,2]
[359069758,1745692257363,-571.0,0.00019926,2]
[359069759,1745692257373,-500.0,0.00019926,2]
[359069760,1745692257382,-500.0,0.00019928,2]
[359069761,1745692257392,-2743.0,0.00019928,2]
[359069762,1745692257402,-150.0,0.00019932,2]
[359069763,1745692257411,-500.0,0.00019932,2]
[359069764,1745692257421,-500.0,0.00019932,2]
[359069765,1745692257430,-151.0,0.00019932,2]
[359069766,1745692257439,-500.0,0.00019953,2]
[359069767,1745692257449,-463.27980547,0.00019953,2]
[359069768,1745692257458,-500.0,0.00019953,2]
[359069769,1745692257468,-500.0,0.00019953,2]
[359069770,1745692257477,-500.0,0.00019953,2]
[359069771,1745692257486,-500.0,0.00019953,2]
[359069772,1745692257496,-571.0,0.00019953,2]
[359069773,1745692257506,-500.0,0.00019953,2]
[359069774,1745692257515,-419.25116851,0.00019955,2]
[359069775,1745692257525,-2743.0,0.00019955,2]
[359069776,1745692257535,-338.61098,0.00019959,2]
[359069777,1745692257546,-151.0,0.00019959,2]
[359069778,1745692257555,-338.61098,0.00019959,2]
[359069779,1745692257565,-177.18528437,0.00019959,2]
[359069780,1745692257575,-500.0,0.00019959,2]
[359069781,1745692257584,-500.0,0.00019959,2]
[359069782,1745692257593,-1446.0,0.00019965,2]
[359069783,1745692257603,-2063.0,0.00019965,2]
[359069784,1745692257612,-911.0,0.00019965,2]
[359069785,1745692257622,-579.0,0.00019965,2]
[359069786,1745692257631,-548.0,0.00019965,2]
[359069787,1745692257726,-1135.0,0.00019965,2]
[359069788,1745692257736,-920.0,0.00019965,2]
[359069789,1745692257746,-201.859,0.00019965,2]
[359069790,1745692257755,-257.141,0.00019965,2]
[359069791,1745692257765,-2149.0,0.00019965,2]
[359069792,1745692257774,-3991.0,0.00019965,2]
[359069793,1745692257785,-1350.8,0.00019972,2]
[359069794,1745692257794,-1350.8,0.00019972,2]
[359069795,1745692257804,-1350.8,0.00019972,2]
[359069796,1745692257813,-1350.8,0.00019972,2]
[359069797,1745692257822,-1350.8,0.00019972,2]
[359069798,1745692257831,-1350.8,0.00019972,2]
[359069799,1745692257841,-1350.8,0.00019972,2]
[359069800,1745692257850,-1350.8,0.00019972,2]
[359069801,1745692257859,-1350.8,0.00019972,2]
[359069802,1745692257869,-1350.8,0.00019972,2]
[359069803,1745692257878,-1350.8,0.00019972,2]
[359069804,1745692257888,-1350.8,0.00019972,2]
[359069805,1745692257898,-1350.8,0.00019972,2]
[359069806,1745692257907,-1350.8,0.00019972,2]
[359069807,1745692257917,-1350.8,0.00019972,2]
[359069808,1745692257927,-1350.8,0.00019972,2]
[359069809,1745692257935,-1350.8,0.00019972,2]
[359069810,1745692257945,-1350.8,0.00019972,2]
[359069811,1745692257954,-1350.8,0.00019972,2]
[359069812,1745692257964,-1350.8,0.00019972,2]
[359069813,1745692257973,-1350.8,0.00019972,2]
[359069814,1745692257982,-1350.8,0.00019972,2]
[359069815,1745692257991,-1350.8,0.00019972,2]
[359069816,1745692258001,-1350.91423895,0.00019972,2]
[359069817,1745692258010,-511.00318909,0.00019973,2]
[359069818,1745692258020,-500.0,0.00019973,2]
[359069819,1745692258030,-500.0,0.00019973,2]
[359069820,1745692258039,-500.0,0.00019973,2]
[359069821,1745692258050,-500.0,0.00019973,2]
[359069822,1745692258059,-500.0,0.00019973,2]
[359069823,1745692258069,-500.0,0.00019973,2]
[359069824,1745692258079,-500.0,0.00019973,2]
[359069825,1745692258090,-500.0,0.00019973,2]
[359069826,1745692258100,-500.0,0.00019973,2]
[359069827,1745692258110,-500.0,0.00019973,2]
[359069828,1745692258119,-500.0,0.00019973,2]
[359069829,1745692258129,-500.0,0.00019973,2]
[359069830,1745692258139,-500.0,0.00019973,2]
[359069831,1745692258149,-500.0,0.00019973,2]
[359069832,1745692258159,-500.0,0.00019973,2]
[359069833,1745692258168,-174.53826606,0.00019973,2]
[359069834,1745692258178,-500.0,0.00019973,2]
[359069835,1745692258187,-500.0,0.00019973,2]
[359069836,1745692258196,-500.0,0.00019973,2]
[359069837,1745692258206,-153.24179358,0.00019973,2]
[359069838,1745692258216,-500.0,0.00019973,2]
[359069839,1745692258226,-505.51795203,0.00019973,2]
[359069840,1745692258236,-500.0,0.00019973,2]
[359069841,1745692258246,-160.11472219,0.00019973,2]
[359069842,1745692258259,-500.0,0.00019973,2]
[359069843,1745692258269,-500.0,0.00019973,2]
[359069844,1745692258278,-514.7327358,0.00019973,2]
[359069845,1745692258289,-1211.89238905,0.00019976,2]
[359069846,1745692258299,-150.0,0.00019977,2]
[359069847,1745692258308,-150.0,0.00019977,2]
[359069848,1745692258318,-150.0,0.00019977,2]
[359069849,1745692258328,-500.0,0.00019981,2]
[359069850,1745692258337,-500.0,0.00019981,2]
[359069851,1745692258347,-500.0,0.00019981,2]
[359069852,1745692258357,-500.0,0.00019981,2]
[359069853,1745692258366,-258.92069253,0.00019981,2]
[359069854,1745692258376,-571.0,0.00019981,2]
[359069855,1745692258386,-500.0,0.00019981,2]
[359069856,1745692258395,-2743.0,0.00019983,2]
[359069857,1745692258404,-657.84,0.00019985,2]
[359069858,1745692258414,-1267.56,0.00019985,2]
[359069859,1745692258424,-500.0,0.00019985,2]
[359069860,1745692258433,-205.421305,0.00019986,2]
[359069861,1745692258442,-205.421305,0.00019986,2]
[359069862,1745692258451,-151.0,0.00019986,2]
[359069863,1745692258461,-151.0,0.00019986,2]
[359069864,1745692258470,-151.0,0.00019986,2]
[359069865,1745692258480,-151.0,0.00019986,2]
[359069866,1745692258489,-151.0,0.00019986,2]
[359069867,1745692258498,-291.51927,0.00019986,2]
[359069868,1745692258507,-151.0,0.00019986,2]
[359069869,1745692258516,-285.526094,0.00019986,2]
[359069870,1745692258527,-151.0,0.00019986,2]
[359069871,1745692258536,-151.0,0.00019986,2]
[359069872,1745692258546,-151.0,0.00019986,2]
[359069873,1745692258555,-168.694553,0.00019986,2]
[359069874,1745692258564,-151.0,0.00019986,2]
[359069875,1745692258573,-151.0,0.00019986,2]
[359069876,1745692258583,-287.646456,0.00019986,2]
[359069877,1745692258592,-446.967519,0.00019986,2]
[359069878,1745692258601,-446.967519,0.00019986,2]
[359069879,1745692258610,-446.967519,0.00019986,2]
[359069880,1745692258619,-202.636808,0.00019986,2]
[359069881,1745692258629,-238.065199,0.00019986,2]
[359069882,1745692258638,-238.065199,0.00019986,2]
[359069883,1745692258647,-238.065199,0.00019986,2]
[359069884,1745692258657,-238.065199,0.00019986,2]
[359069885,1745692258666,-238.065199,0.00019986,2]
[359069886,1745692258675,-238.065199,0.00019986,2]
[359069887,1745692258684,-5989.0347107,0.00019986,2]
[359069888,1745692258694,-6064.2088362,0.00019986,2]
[359069889,1745692258703,-6139.3829616,0.00019986,2]
[359069890,1745692258712,-6214.5570871,0.00019986,2]
[359069891,1745692258722,-459.841495,0.00019986,2]
[359069892,1745692258731,-459.841495,0.00019986,2]
[359069893,1745692258740,-459.841495,0.00019986,2]
[359069894,1745692258750,-459.841495,0.00019986,2]
[359069895,1745692258759,-459.841495,0.00019986,2]
[359069896,1745692258768,-459.841495,0.00019986,2]
[359069897,1745692258777,-151.0,0.00019986,2]
[359069898,1745692258787,-151.0,0.00019986,2]
[359069899,1745692258796,-161.264731,0.00019986,2]
[359069900,1745692258805,-151.0,0.00019986,2]
[359069901,1745692258814,-151.0,0.00019986,2]
[359069902,1745692258823,-151.0,0.00019986,2]
[359069903,1745692258833,-162.552013,0.00019986,2]
[359069904,1745692258843,-151.0,0.00019986,2]
[359069905,1745692258852,-151.0,0.00019986,2]
[359069906,1745692258862,-151.0,0.00019986,2]
[359069907,1745692258871,-312.313674,0.00019986,2]
[359069908,1745692258880,-312.313674,0.00019986,2]
[359069909,1745692258889,-312.313674,0.00019986,2]
[359069910,1745692258898,-312.313674,0.00019986,2]
[359069911,1745692258907,-312.313674,0.00019986,2]
[359069912,1745692258917,-312.313674,0.00019986,2]
[359069913,1745692258926,-56318.9635384,0.00019986,2]
[359069914,1745692258936,-57228.0409948,0.00019986,2]
[359069915,1745692258945,-58137.1184512,0.00019986,2]
[359069916,1745692258954,-5868.0956861,0.00019986,2]
[359069917,1745692258964,-5951.5215092,0.00019986,2]
[359069918,1745692258973,-6034.9473323,0.00019986,2]
[359069919,1745692258983,-6118.3731555,0.00019986,2]
[359069920,1745692258992,-294.375668,0.00019986,2]
[359069921,1745692259001,-294.375668,0.00019986,2]
[359069922,1745692259011,-294.375668,0.00019986,2]
[359069923,1745692259020,-294.375668,0.00019986,2]
[359069924,1745692259030,-294.375668,0.00019986,2]
[359069925,1745692259039,-294.375668,0.00019986,2]
[359069926,1745692259049,-3027.8245348,0.00019986,2]
[359069927,1745692259060,-3249.9169836,0.00019986,2]
[359069928,1745692259070,-3472.0094324,0.00019986,2]
[359069929,1745692259080,-3694.1018812,0.00019986,2]
[359069930,1745692259089,-151.0,0.00019986,2]
[359069931,1745692259099,-589.042961,0.00019986,2]
[359069932,1745692259108,-589.042961,0.00019986,2]
[359069933,1745692259117,-151.0,0.00019986,2]
[359069934,1745692259127,-589.042961,0.00019986,2]
[359069935,1745692259136,-158.361991,0.00019986,2]
[359069936,1745692259145,-151.0,0.00019986,2]
[359069937,1745692259154,-151.0,0.00019986,2]
[359069938,1745692259164,-151.0,0.00019986,2]
[359069939,1745692259173,-589.042961,0.00019986,2]
[359069940,1745692259182,-589.042961,0.00019986,2]
[359069941,1745692259191,-589.042961,0.00019986,2]
[359069942,1745692259201,-169.789393,0.00019986,2]
[359069943,1745692259210,-169.789393,0.00019986,2]
[359069944,1745692259219,-169.789393,0.00019986,2]
[359069945,1745692259229,-169.789393,0.00019986,2]
[359069946,1745692259238,-169.789393,0.00019986,2]
[359069947,1745692259248,-169.789393,0.00019986,2]
[359069948,1745692259260,-16478.9206793,0.00019986,2]
[359069949,1745692259269,-17687.6577791,0.00019986,2]
[359069950,1745692259278,-18896.394879,0.00019986,2]
[359069951,1745692259288,-5119.5881348,0.00019986,2]
[359069952,1745692259297,-4263.0510978,0.00019986,2]
[359069953,1745692259306,-3406.5140609,0.00019986,2]
[359069954,1745692259316,-2549.977024,0.00019986,2]
[359069955,1745692259325,-235.852517,0.00019986,2]
[359069956,1745692259335,-235.852517,0.00019986,2]
[359069957,1745692259345,-235.852517,0.00019986,2]
[359069958,1745692259354,-235.852517,0.00019986,2]
[359069959,1745692259363,-235.852517,0.00019986,2]
[359069960,1745692259373,-235.852517,0.00019986,2]
[359069961,1745692259383,-151.0,0.00019986,2]
[359069962,1745692259392,-151.0,0.00019986,2]
[359069963,1745692259401,-151.0,0.00019986,2]
[359069964,1745692259410,-166.697118,0.00019986,2]
[359069965,1745692259419,-1068.9703327,0.00019986,2]
[359069966,1745692259429,-890.1253441,0.00019986,2]
[359069967,1745692259439,-711.2803556,0.00019986,2]
[359069968,1745692259448,-614.535293,0.00019986,2]
[359069969,1745692259457,-614.535293,0.00019986,2]
[359069970,1745692259466,-614.535293,0.00019986,2]
[359069971,1745692259475,-614.535293,0.00019986,2]
[359069972,1745692259484,-614.535293,0.00019986,2]
[359069973,1745692259494,-614.53529,0.00019986,2]
[359069974,1745692259503,-21123.7973943,0.00019986,2]
[359069975,1745692259512,-17589.6625474,0.00019986,2]
[359069976,1745692259521,-14055.5277005,0.00019986,2]
[359069977,1745692259530,-338.61098,0.00019986,2]
[359069978,1745692259540,-338.61098,0.00019986,2]
[359069979,1745692259549,-151.0,0.00019986,2]
[359069980,1745692259558,-151.0,0.00019986,2]
[359069981,1745692259567,-338.61098,0.00019986,2]
[359069982,1745692259576,-338.610985,0.00019986,2]
[359069983,1745692259585,-500.0,0.00019987,2]
[359069984,1745692259594,-500.0,0.00019987,2]
[359069985,1745692259603,-1094.03633529,0.00019988,2]
[359069986,1745692259613,-500.0,0.00019999,2]
[359069987,1745692259622,-500.0,0.00019999,2]
[359069988,1745692259631,-500.0,0.00019999,2]
[359069989,1745692259641,-500.0,0.00019999,2]
[359069990,1745692259650,-500.0,0.00019999,2]
[359069991,1745692259659,-500.0,0.00019999,2]
[359069992,1745692259669,-500.0,0.00019999,2]
[359069993,1745692259678,-500.0,0.00019999,2]
[359069994,1745692259688,-500.0,0.00019999,2]
[359069995,1745692259697,-500.0,0.00019999,2]
[359069996,1745692259706,-500.0,0.00019999,2]
[359069997,1745692259716,-500.0,0.00019999,2]
[359069998,1745692259725,-500.0,0.00019999,2]
[359069999,1745692259734,-500.0,0.00019999,2]
[359070000,1745692259744,-500.0,0.00019999,2]
[359070001,1745692259754,-500.0,0.00019999,2]
[359070002,1745692259763,-231.5730995,0.00019999,2]
[359070003,1745692259772,-657.84,0.00019999,2]
[359070004,1745692259782,-657.84,0.00019999,2]
[359070005,1745692259792,-657.84,0.00019999,2]
[359070006,1745692259801,-657.84,0.00019999,2]
[359070007,1745692259812,-657.84,0.00019999,2]
[359070008,1745692259822,-657.86921698,0.00019999,2]
[359070009,1745692259831,-1267.56,0.00019999,2]
[359070010,1745692259841,-1267.56,0.00019999,2]
[359070011,1745692259850,-1267.56,0.00019999,2]
[359070012,1745692259861,-1267.56,0.00019999,2]
[359070013,1745692259870,-1267.56,0.00019999,2]
[359070014,1745692259879,-1267.68618555,0.00019999,2]
[359070015,1745692259889,-629002.84080576,0.0002,2]
[359070016,1745692260667,611.54,0.00016723,2]
[359070017,1745692260759,611.54,0.00018987,2]
[359070018,1745692261128,-66657.64910273,0.0002,2]
[359070019,1745692261139,-25186.3396482,0.0002,2]
[359070020,1745692261155,-1200.0950614,0.0002,2]
[359070021,1745692261405,-370.2874592,0.000199,2]
[359070022,1745692262219,-400.0,0.00019597,2]
[359070023,1745692262229,-587.63,0.00019816,2]
[359070024,1745692262239,-151.0,0.00019827,2]
[359070025,1745692262250,-400.0,0.00019871,2]
[359070026,1745692262267,-3787.67496379,0.000199,2]
[359070027,1745692262277,-877.0,0.00019925,2]
[359070028,1745692262286,-145389.81086318,0.0002,2]
[359070029,1745692262457,-1706.20657686,0.0002,2]
[359070030,1745692262500,-400.0,0.00019871,2]
[359070031,1745692262510,-1204.25643616,0.0002,2]
[359070032,1745692267093,-187.03,0.00019458,2]
[359070033,1745692268938,-150.0,0.0001938,2]
[359070034,1745692268962,-37.03,0.00019382,2]
[359070035,1745692274502,-112.97,0.00019382,2]
[359070036,1745692274532,-69.09601086,0.00019393,2]
[359070037,1745692286162,182.066011,0.00019296,2]
[359070038,1745692324636,-271.03250172,0.00019393,2]
[359070039,1745692334316,-157.88228322,0.00019392,2]
[359070040,1745692357274,-179.0,0.00019392,2]
[359070041,1745692366761,271.032502,0.00019295,2]
[359070042,1745692367597,-296.41791632,0.00019392,2]
[359070043,1745692382397,296.417916,0.00019295,2]
[359070045,1745692476918,-453.09990823,0.00019391,2]
[359070046,1745692504264,-150.0,0.0001939,2]
[359070047,1745692545323,182.92,0.00019247,2]
[359070048,1745692561651,-344.44242011,0.0001939,2]
[359070049,1745692592638,-368.5350206,0.0001939,2]
[359070050,1745692597053,172.14,0.00013699,2]
[359070051,1745692597418,172.14,0.00013699,2]
[359070052,1745692597736,172.14,0.00013699,2]
[359070053,1745692598075,172.15742589,0.00013699,2]